bitfinex-derivatives/quotes_BTCF0:USTF0_20241023
["timestamp","ask_amount","ask_price","bid_price","bid_amount"]
[1729726844972,0.17280451,66850.0,66841.0,0.17280451]
[1729726845171,0.074863,66845.0,66842.0,0.074866]
[1729726846180,0.074863,66845.0,66843.0,0.074865]
[1729726848188,0.074863,66845.0,66841.0,0.17280451]
[1729726848579,0.074863,66845.0,66841.0,0.24767151]
[1729726849079,0.074863,66845.0,66842.0,0.074866]
[1729726849683,0.24766751,66845.0,66836.0,0.074872]
[1729726849988,0.24766751,66845.0,66837.0,0.074871]
[1729726850288,0.074871,66838.0,66837.0,0.074871]
[1729726850685,0.106371,66838.0,66837.0,0.074871]
[1729726850988,0.074875,66835.0,66834.0,0.074875]
[1729726854484,0.074879,66832.0,66831.0,0.074878]
[1729726854685,0.074879,66832.0,66830.0,1.50112]
[1729726854686,0.074879,66831.0,66830.0,1.50112]
[1729726854987,0.074879,66831.0,66830.0,1.50116]
[1729726855179,0.074879,66831.0,66830.0,1.5]
[1729726855382,0.24768351,66831.0,66830.0,1.5]
[1729726855589,0.24768351,66831.0,66824.0,0.074886]
[1729726855590,0.074885,66825.0,66824.0,0.074886]
[1729726855886,0.24768351,66831.0,66820.0,0.07489]
[1729726855887,0.074887,66824.0,66820.0,0.07489]
[1729726856090,0.106187,66824.0,66820.0,0.07489]
[1729726856286,0.106187,66824.0,66822.0,0.074889]
[1729726856477,0.27899151,66824.0,66823.0,0.07713235]
[1729726856683,0.106187,66824.0,66823.0,0.07713235]
[1729726862986,0.106187,66824.0,66823.0,0.00224435]
[1729726863192,0.074887,66824.0,66823.0,0.00224435]
[1729726863791,0.105987,66824.0,66823.0,0.00224435]
[1729726864396,0.105987,66824.0,66818.0,0.074893]
[1729726864397,0.074892,66819.0,66818.0,0.074893]
[1729726864592,0.24769651,66819.0,66818.0,0.074893]
[1729726869102,0.074897,66815.0,66814.0,0.074897]
[1729726869301,0.24770151,66815.0,66814.0,0.074897]
[1729726869698,0.17280451,66815.0,66814.0,0.074897]
[1729726870809,0.17280451,66815.0,66811.0,1.50112]
[1729726870996,0.24770451,66812.0,66811.0,0.074901]
[1729726871700,0.17280451,66812.0,66811.0,0.074901]
[1729726873100,0.17280451,66815.0,66814.0,0.074898]
[1729726875311,0.074895,66817.0,66812.0,0.033]
[1729726875499,0.17280451,66818.0,66817.0,0.074894]
[1729726875699,0.24769751,66818.0,66817.0,0.074894]
[1729726886517,0.074893,66818.0,66817.0,0.074894]
[1729726892322,0.1882272,66818.0,66817.0,0.074894]
[1729726894423,0.1133342,66820.0,66815.0,0.04441285]
[1729726894724,0.1882252,66820.0,66819.0,0.074892]
[1729726898314,0.074891,66820.0,66819.0,0.074892]
[1729726898519,0.1882252,66820.0,66819.0,0.074892]
[1729726900727,0.1882252,66820.0,66815.0,0.074895]
[1729726900728,0.074897,66816.0,66815.0,0.074895]
[1729726900925,0.1882312,66816.0,66815.0,0.074895]
[1729726901421,0.1882312,66816.0,66815.0,0.09831722]
[1729726901622,0.1882312,66816.0,66815.0,0.02342222]
[1729726901928,0.074899,66813.0,66812.0,0.01351232]
[1729726902120,0.1882332,66813.0,66812.0,0.02342324]
[1729726903725,0.1882332,66813.0,66811.0,0.074901]
[1729726903726,0.1133342,66813.0,66811.0,0.074901]
[1729726903922,0.1072,66812.0,66811.0,0.074901]
[1729726905537,0.0323,66812.0,66811.0,0.1882352]
[1729726905832,0.105488,66823.0,66818.0,0.074891]
[1729726905833,0.074893,66819.0,66818.0,0.074891]
[1729726906034,0.1882272,66819.0,66818.0,0.074891]
[1729726909842,0.074893,66819.0,66818.0,0.074891]
[1729726918229,0.074893,66818.0,66817.0,0.01321163]
[1729726918436,0.1462342,66818.0,66816.0,0.074895]
[1729726918742,0.074894,66817.0,66816.0,0.074895]
[1729726920433,0.074894,66817.0,66809.0,0.04441285]
[1729726920434,0.0329,66818.0,66813.0,0.01333252]
[1729726920649,0.1882322,66814.0,66813.0,0.074899]
[1729726920835,0.1882322,66814.0,66813.0,0.0983219]
[1729726921437,0.1882322,66814.0,66813.0,0.09832206]
[1729726922247,0.1882322,66814.0,66813.0,0.02342306]
[1729726923141,0.1133342,66814.0,66809.0,0.04441285]
[1729726923346,0.0329,66818.0,66809.0,0.11931585]
[1729726923347,0.1133342,66810.0,66809.0,0.11931585]
[1729726923542,0.1882362,66810.0,66809.0,0.0983263]
[1729726923750,0.2522362,66810.0,66809.0,0.074903]
[1729726924447,0.2522362,66810.0,66809.0,0.09832761]
[1729726924857,0.2522362,66810.0,66809.0,0.074903]
[1729726926951,0.138902,66810.0,66809.0,0.074903]
[1729726927153,0.2522362,66810.0,66809.0,0.074903]
[1729726927450,0.2522362,66810.0,66805.0,0.01558449]
[1729726927451,0.074907,66806.0,66805.0,0.01558449]
[1729726927642,0.1882412,66806.0,66805.0,0.03901045]
[1729726928443,0.1882412,66806.0,66805.0,0.01558449]
[1729726928647,0.1882412,66806.0,66805.0,0.00224546]
[1729726939143,0.3015754,66806.0,66805.0,0.00224546]
[1729726939351,0.1882412,66806.0,66805.0,0.00224546]
[1729726940849,0.1882412,66806.0,66798.0,0.01357412]
[1729726940850,0.6757484,66806.0,66788.0,0.0328]
[1729726941059,0.1882622,66789.0,66788.0,0.074926]
[1729726941455,0.07493,66785.0,66784.0,1.57717584]
[1729726941647,0.1882642,66785.0,66784.0,1.57717584]
[1729726941852,0.1882642,66785.0,66784.0,1.59061031]
[1729726942054,0.1882642,66785.0,66784.0,1.51568031]
[1729726942449,0.1882642,66785.0,66784.0,1.50224584]
[1729726943653,0.07493,66785.0,66784.0,1.50224584]
[1729726943857,0.1882642,66785.0,66784.0,1.50224584]
[1729726951553,0.1882642,66785.0,66784.0,1.57717684]
[1729726951953,0.1133342,66787.0,66784.0,1.57717684]
[1729726951954,0.09888,66802.0,66784.0,1.95144584]
[1729726952160,0.1133342,66795.0,66785.0,0.0325]
[1729726952354,0.1133342,66787.0,66785.0,0.0325]
[1729726952554,0.1133342,66787.0,66786.0,0.0318]
[1729726953771,0.1133342,66787.0,66786.0,0.106729]
[1729726958766,0.17603717,66803.0,66786.0,0.0318]
[1729726958964,0.1133342,66787.0,66786.0,0.106729]
[1729726963468,0.1133342,66790.0,66787.0,0.074928]
[1729726963663,0.1133342,66791.0,66787.0,0.1133342]
[1729726963968,0.1133342,66791.0,66790.0,0.074925]
[1729726964863,0.07492,66794.0,66790.0,0.074925]
[1729726965070,0.07492,66794.0,66787.0,0.1133342]
[1729726965275,0.07492,66794.0,66793.0,0.074921]
[1729726965471,0.1882542,66794.0,66793.0,0.074921]
[1729726967364,0.074915,66799.0,66796.0,0.074918]
[1729726967571,0.1133342,66799.0,66796.0,0.074918]
[1729726967878,0.1133342,66799.0,66798.0,0.074916]
[1729726968471,0.074912,66802.0,66801.0,0.074912]
[1729726968667,0.1882462,66802.0,66801.0,0.074912]
[1729726973575,0.3015804,66802.0,66801.0,0.074912]
[1729726973780,0.1882462,66802.0,66801.0,0.074912]
[1729726974079,0.3015804,66802.0,66801.0,0.074912]
[1729726974284,0.1882462,66802.0,66801.0,0.074912]
[1729726974480,0.1133342,66802.0,66793.0,0.01310315]
[1729726974683,0.1133342,66794.0,66793.0,0.074921]
[1729726974885,0.074917,66798.0,66797.0,0.074917]
[1729726975187,0.1882512,66798.0,66797.0,0.074917]
[1729726975584,0.00224617,66803.0,66802.0,0.074911]
[1729726975778,0.19049037,66803.0,66802.0,0.074911]
[1729726979477,0.30382457,66803.0,66802.0,0.074911]
[1729726979684,0.074916,66798.0,66792.0,0.04454907]
[1729726979886,0.1133342,66793.0,66792.0,0.074922]
[1729726982991,0.1882552,66793.0,66792.0,0.074922]
[1729726983990,0.1133342,66793.0,66786.0,0.074928]
[1729726984184,0.1133342,66787.0,66786.0,0.074928]
[1729726984794,0.1882622,66787.0,66786.0,0.074928]
[1729726988897,0.2266684,66787.0,66784.0,0.00224584]
[1729726989190,0.1882642,66785.0,66784.0,0.00224584]
[1729726989493,0.1882642,66785.0,66784.0,1.50224584]
[1729726989697,0.1882642,66785.0,66784.0,1.57717684]
[1729726990890,0.1882642,66785.0,66784.0,1.50224584]
[1729726991087,0.1882642,66785.0,66784.0,1.57717684]
[1729726991897,0.1882642,66785.0,66784.0,1.50224584]
[1729726993294,0.1882642,66785.0,66784.0,0.00224584]
[1729726993497,0.074938,66778.0,66776.0,0.074939]
[1729726993790,0.1459342,66777.0,66776.0,1.574939]
[1729726994491,0.1459342,66777.0,66776.0,1.58836575]
[1729727000301,0.2208732,66777.0,66776.0,0.08836575]
[1729727000500,0.2208732,66777.0,66776.0,0.01342675]
[1729727000688,0.2208732,66777.0,66775.0,0.074941]
[1729727000887,0.1133342,66776.0,66775.0,0.074941]
[1729727001402,0.074942,66775.0,66771.0,0.074945]
[1729727001593,0.1133342,66772.0,66771.0,0.074945]
[1729727002995,0.1133342,66772.0,66771.0,0.069945]
[1729727012005,0.0318,66773.0,66772.0,0.074945]
[1729727012200,0.10754,66777.0,66776.0,0.07494]
[1729727014804,0.0326,66777.0,66776.0,0.07494]
[1729727017507,0.0326,66777.0,66776.0,0.08819495]
[1729727022716,0.107539,66777.0,66776.0,0.08819495]
[1729727023104,0.2208732,66777.0,66776.0,0.08819495]
[1729727029517,0.2208732,66777.0,66776.0,0.01325495]
[1729727029724,0.2208732,66777.0,66774.0,0.04457063]
[1729727030229,0.074941,66776.0,66775.0,0.074941]
[1729727030417,0.074941,66776.0,66775.0,0.11951163]
[1729727031918,0.074941,66776.0,66775.0,0.074941]
[1729727032828,0.074941,66776.0,66775.0,0.11951163]
[1729727033619,0.074941,66776.0,66775.0,0.04457063]
[1729727034721,0.1133342,66776.0,66774.0,0.05757869]
[1729727034922,0.108241,66775.0,66774.0,0.05757869]
[1729727035124,0.2215752,66775.0,66774.0,0.08110159]
[1729727035323,0.2215752,66775.0,66774.0,0.01300806]
[1729727035536,0.074945,66772.0,66771.0,0.04465622]
[1729727035732,0.1882792,66772.0,66771.0,0.06809485]
[1729727035933,0.1882792,66772.0,66771.0,0.02343863]
[1729727037225,0.1882792,66772.0,66770.0,0.074947]
[1729727037430,0.1882792,66772.0,66771.0,0.02343889]
[1729727039332,0.074945,66772.0,66771.0,0.09838489]
[1729727039632,0.1882792,66772.0,66771.0,0.09838489]
[1729727042223,0.1882792,66772.0,66771.0,0.0983847]
[1729727043531,0.0326,66777.0,66776.0,0.07494]
[1729727043722,0.0326,66777.0,66776.0,0.1882742]
[1729727043930,0.0305,66786.0,66776.0,0.1133342]
[1729727044137,0.1133342,66783.0,66782.0,0.074933]
[1729727044636,0.1438342,66786.0,66784.0,0.074931]
[1729727045732,0.10543,66786.0,66784.0,0.074931]
[1729727046024,0.1133342,66785.0,66784.0,0.074931]
[1729727046628,0.106426,66789.0,66788.0,0.074927]
[1729727046830,0.00224666,66791.0,66790.0,0.074925]
[1729727047229,0.00224666,66791.0,66790.0,1.61958122]
[1729727047433,0.00224666,66791.0,66790.0,1.574925]
[1729727047640,0.00224666,66791.0,66790.0,1.59835731]
[1729727048528,0.1133342,66792.0,66790.0,1.52343231]
[1729727048727,0.1133342,66792.0,66790.0,1.5]
[1729727048924,0.1133342,66792.0,66791.0,0.074924]
[1729727049123,0.07492,66794.0,66791.0,0.074924]
[1729727049335,0.1133342,66793.0,66791.0,0.074924]
[1729727050227,0.1882562,66793.0,66790.0,1.50112]
[1729727050434,0.074924,66791.0,66790.0,1.5]
[1729727050627,0.074924,66791.0,66790.0,1.51324619]
[1729727053926,0.074924,66791.0,66790.0,0.01324619]
[1729727054131,0.0324,66792.0,66784.0,0.074931]
[1729727054344,0.1133342,66785.0,66784.0,0.074931]
[1729727054844,0.1882652,66785.0,66784.0,1.5]
[1729727055042,0.1133342,66785.0,66777.0,0.0974]
[1729727055334,0.1133342,66778.0,66777.0,0.0974]
[1729727056435,0.1133342,66778.0,66777.0,0.172339]
[1729727057432,0.1133342,66778.0,66777.0,0.074939]
[1729727057633,0.1133342,66778.0,66776.0,1.50112]
[1729727057835,0.1456342,66778.0,66776.0,1.5]
[1729727058038,0.074939,66777.0,66776.0,1.5]
[1729727058638,0.074944,66773.0,66770.0,0.074946]
[1729727058837,0.0321,66772.0,66770.0,0.074946]
[1729727059030,0.0321,66772.0,66771.0,1.5]
[1729727059237,0.107045,66772.0,66771.0,1.5]
[1729727060241,0.27987441,66772.0,66771.0,1.5]
[1729727062551,0.107045,66772.0,66771.0,1.5]
[1729727071647,0.107045,66772.0,66771.0,1.574946]
[1729727082458,0.107045,66772.0,66771.0,1.5]
[1729727082649,0.107045,66772.0,66771.0,1.574946]
[1729727086351,0.107045,66772.0,66771.0,1.61946951]
[1729727087359,0.107045,66772.0,66771.0,1.574946]
[1729727088664,0.0321,66772.0,66771.0,1.574946]
[1729727095680,0.031,66784.0,66771.0,1.574946]
[1729727095877,0.21729912,66783.0,66782.0,0.074932]
[1729727096083,0.18834626,66783.0,66782.0,0.074932]
[1729727101375,0.074937,66780.0,66778.0,0.074938]
[1729727101578,0.11341326,66779.0,66778.0,0.074938]
[1729727101778,0.074936,66780.0,66779.0,0.074936]
[1729727102079,0.18834926,66780.0,66779.0,0.074936]
[1729727107276,0.04437758,66784.0,66783.0,0.074932]
[1729727107487,0.0332,66788.0,66784.0,0.074931]
[1729727107682,0.09736,66800.0,66792.0,0.074922]
[1729727107683,0.11341326,66793.0,66792.0,0.074922]
[1729727111279,0.11341326,66796.0,66795.0,0.074919]
[1729727113386,0.11341326,66796.0,66790.0,0.0133805]
[1729727113681,0.14601326,66799.0,66788.0,0.074927]
[1729727113682,0.11341326,66791.0,66788.0,0.074927]
[1729727115685,0.14661326,66790.0,66789.0,0.074926]
[1729727136302,0.0332,66790.0,66789.0,0.074926]
[1729727136496,0.01300282,66792.0,66791.0,0.074924]
[1729727136802,0.11341326,66792.0,66786.0,0.14401326]
[1729727137099,0.11341326,66792.0,66791.0,0.074924]
[1729727137895,0.105617,66797.0,66794.0,0.07492]
[1729727137896,0.11341326,66795.0,66794.0,0.07492]
[1729727138092,0.0307,66797.0,66795.0,0.11341326]
[1729727138302,0.14411326,66797.0,66796.0,0.074918]
[1729727142394,0.0307,66797.0,66796.0,0.074918]
[1729727166032,0.105617,66797.0,66796.0,0.074918]
[1729727167630,0.0307,66797.0,66796.0,0.074918]
[1729727167833,0.00076,66825.0,66810.0,0.074902]
[1729727168025,0.00076,66828.0,66812.0,0.0749]
[1729727168336,0.00224459,66839.0,66833.0,0.074875]
[1729727168631,0.00224459,66839.0,66828.0,0.074881]
[1729727168632,0.074878,66832.0,66828.0,0.074881]
[1729727168931,0.11341326,66827.0,66826.0,0.074884]
[1729727170826,0.11341326,66827.0,66826.0,0.08850999]
[1729727174226,0.11341326,66831.0,66830.0,0.07488]
[1729727174727,0.18829226,66831.0,66830.0,0.07488]
[1729727175131,0.074879,66831.0,66830.0,0.07488]
[1729727185532,0.11341326,66832.0,66825.0,0.11341326]
[1729727185733,0.074883,66828.0,66827.0,0.074882]
[1729727188229,0.074883,66828.0,66823.0,0.11341326]
[1729727188230,0.074886,66825.0,66824.0,0.074887]
[1729727189024,0.105186,66825.0,66824.0,0.074887]
[1729727189229,0.105186,66825.0,66819.0,0.00224491]
[1729727189230,0.074891,66820.0,66819.0,0.00224491]
[1729727189534,0.074891,66820.0,66798.0,0.074915]
[1729727189535,0.074893,66819.0,66806.0,0.074906]
[1729727189739,0.11341326,66807.0,66805.0,0.074907]
[1729727189933,0.0632,66806.0,66805.0,0.074907]
[1729727193429,0.074893,66819.0,66807.0,0.074905]
[1729727193644,0.074893,66819.0,66806.0,0.074907]
[1729727193645,0.137493,66819.0,66818.0,0.11341326]
[1729727193940,0.074893,66818.0,66817.0,0.074894]
[1729727195042,0.074898,66815.0,66814.0,0.074898]
[1729727195241,0.18831126,66815.0,66814.0,0.074898]
[1729727211150,0.074898,66815.0,66814.0,0.074898]
[1729727211752,0.0626,66819.0,66813.0,0.11341326]
[1729727211952,0.137493,66819.0,66818.0,0.074893]
[1729727216352,0.137493,66819.0,66818.0,0.08788447]
[1729727219759,0.137493,66819.0,66818.0,0.074893]
[1729727224764,0.16642838,66819.0,66818.0,0.074893]
[1729727226362,0.0322,66819.0,66818.0,0.074893]
[1729727226569,0.0654,66827.0,66826.0,0.074884]
[1729727227055,0.17881326,66827.0,66826.0,0.074884]
[1729727227669,0.25369626,66827.0,66826.0,0.074884]
[1729727228260,0.25369626,66827.0,66820.0,1.5]
[1729727228261,0.074889,66824.0,66823.0,0.074887]
[1729727228456,0.11341326,66824.0,66820.0,1.50112]
[1729727228777,0.18830326,66821.0,66820.0,1.574891]
[1729727230861,0.18830326,66821.0,66815.0,0.0130243]
[1729727230862,0.074894,66818.0,66817.0,0.074894]
[1729727231061,0.18830726,66818.0,66817.0,0.074894]
[1729727233064,0.18830726,66818.0,66813.0,0.074897]
[1729727233065,0.074899,66814.0,66813.0,0.074897]
[1729727233261,0.18831226,66814.0,66813.0,0.074897]
[1729727233466,0.18831226,66814.0,66812.0,0.0022449]
[1729727233467,0.074899,66813.0,66812.0,0.0022449]
[1729727233679,0.169599,66813.0,66812.0,0.0022449]
[1729727237670,0.074902,66810.0,66809.0,0.074903]
[1729727237864,0.074902,66810.0,66809.0,0.18831626]
[1729727238863,0.074902,66810.0,66809.0,0.11341326]
[1729727239272,0.074904,66808.0,66807.0,1.576025]
[1729727239475,0.074904,66808.0,66807.0,1.574905]
[1729727239976,0.18831726,66808.0,66807.0,1.574905]
[1729727242769,0.074904,66808.0,66807.0,1.574905]
[1729727248876,0.18831726,66808.0,66807.0,1.574905]
[1729727250885,0.074904,66808.0,66807.0,1.574905]
[1729727253186,0.0947,66813.0,66807.0,1.5]
[1729727253483,0.0749,66812.0,66811.0,0.0749]
[1729727253891,0.0749,66812.0,66811.0,1.5749]
[1729727275107,0.0749,66812.0,66811.0,1.59832466]
[1729727279404,0.0749,66812.0,66811.0,1.59832466]
[1729727280809,0.0947,66813.0,66811.0,1.59832466]
[1729727281014,0.0947,66813.0,66812.0,0.0749]
[1729727281327,0.0947,66813.0,66812.0,0.09832391]
[1729727284214,0.0947,66813.0,66812.0,0.14287124]
[1729727284915,0.01331002,66820.0,66819.0,0.074892]
[1729727285212,0.074877,66833.0,66820.0,0.074891]
[1729727285213,0.11341326,66821.0,66820.0,0.074891]
[1729727285410,0.18830326,66821.0,66820.0,0.074891]
[1729727285610,0.22050326,66821.0,66820.0,0.074891]
[1729727287117,0.10709,66821.0,66820.0,0.074891]
[1729727287310,0.0322,66821.0,66820.0,0.074891]
[1729727289423,0.0322,66822.0,66820.0,0.01311986]
[1729727289617,0.0322,66822.0,66821.0,0.07489]
[1729727291013,0.14561326,66822.0,66821.0,0.07489]
[1729727291224,0.14561326,66822.0,66821.0,0.08819047]
[1729727292231,0.22050226,66822.0,66821.0,0.08819047]
[1729727294014,0.22050226,66822.0,66821.0,0.01330047]
[1729727294215,0.074892,66820.0,66818.0,0.074893]
[1729727294417,0.074892,66820.0,66811.0,1.5]
[1729727294418,0.11341326,66818.0,66813.0,0.04454733]
[1729727294625,0.0749,66813.0,66812.0,0.0749]
[1729727295131,0.0749,66813.0,66809.0,0.09712]
[1729727295132,0.074903,66810.0,66809.0,0.074903]
[1729727295424,0.074906,66807.0,66806.0,0.09712]
[1729727295625,0.18831926,66807.0,66806.0,1.574907]
[1729727295819,0.18831926,66807.0,66806.0,1.5]
[1729727296341,0.074907,66806.0,66805.0,0.074908]
[1729727296830,0.074907,66806.0,66805.0,1.574908]
[1729727298929,0.074907,66806.0,66805.0,1.5]
[1729727300326,0.11341326,66807.0,66799.0,0.09716]
[1729727300532,0.11341326,66803.0,66802.0,0.074911]
[1729727300719,0.18832326,66803.0,66802.0,0.09833705]
[1729727300927,0.18832326,66803.0,66802.0,1.574911]
[1729727301320,0.18832326,66803.0,66802.0,1.5]
[1729727301526,0.11341326,66803.0,66795.0,0.04454733]
[1729727301724,0.0311,66809.0,66794.0,0.07492]
[1729727301725,0.11341326,66796.0,66794.0,0.07492]
[1729727301931,0.0641,66795.0,66794.0,0.07492]
[1729727302125,0.0641,66795.0,66794.0,0.09834823]
[1729727302325,0.0641,66795.0,66794.0,0.08816723]
[1729727302526,0.0641,66795.0,66794.0,1.58816723]
[1729727302832,0.0641,66795.0,66794.0,1.57492]
[1729727303330,0.074922,66793.0,66791.0,0.01582643]
[1729727303630,0.18833526,66793.0,66791.0,0.01582643]
[1729727305427,0.074922,66792.0,66791.0,0.00224539]
[1729727306436,0.074922,66792.0,66791.0,1.50224539]
[1729727307623,0.074922,66792.0,66791.0,0.00224539]
[1729727307827,0.07493,66786.0,66783.0,0.074932]
[1729727308026,0.0641,66795.0,66783.0,0.074932]
[1729727308027,0.11341326,66784.0,66783.0,0.074932]
[1729727308532,0.11341326,66784.0,66783.0,1.574932]
[1729727309031,0.074931,66785.0,66783.0,1.574932]
[1729727309228,0.11341326,66784.0,66783.0,1.574932]
[1729727310338,0.18834426,66784.0,66783.0,1.5]
[1729727310826,0.074931,66784.0,66783.0,1.5]
[1729727311728,0.11341326,66785.0,66784.0,0.074931]
[1729727312028,0.074926,66789.0,66783.0,1.50124]
[1729727312228,0.0315,66794.0,66783.0,1.50124]
[1729727312229,0.074922,66793.0,66790.0,0.074924]
[1729727312429,0.11341326,66791.0,66790.0,0.074924]
[1729727317233,0.11341326,66791.0,66783.0,1.61341326]
[1729727317438,0.11341326,66786.0,66783.0,1.61341326]
[1729727317626,0.11341326,66786.0,66783.0,1.5]
[1729727318734,0.11341326,66786.0,66785.0,0.07493]
[1729727320837,0.22682652,66786.0,66783.0,1.50116]
[1729727321139,0.22682652,66786.0,66783.0,1.5]
[1729727321140,0.074931,66784.0,66783.0,1.5]
[1729727323038,0.075931,66784.0,66783.0,1.5]
[1729727325539,0.075931,66784.0,66783.0,1.68834526]
[1729727325930,0.001,66784.0,66783.0,1.68834526]
[1729727326130,0.11341326,66790.0,66789.0,0.074926]
[1729727326437,0.11341326,66793.0,66792.0,0.074922]
[1729727330643,0.11341326,66793.0,66792.0,0.08804519]
[1729727331349,0.18833426,66793.0,66792.0,0.08804519]
[1729727332238,0.18833426,66793.0,66792.0,0.074922]
[1729727340448,0.074921,66793.0,66792.0,0.074922]
[1729727360967,0.21983326,66794.0,66793.0,0.074921]
[1729727362071,0.21983326,66794.0,66793.0,0.11946833]
[1729727362263,0.22083326,66794.0,66793.0,0.11946833]
[1729727363160,0.22083326,66794.0,66793.0,0.074921]
[1729727363567,0.22083326,66794.0,66793.0,0.11946833]
[1729727363878,0.22083326,66794.0,66793.0,0.074921]
[1729727365067,0.14591326,66794.0,66791.0,0.05756274]
[1729727365367,0.14591326,66794.0,66791.0,0.01301541]
[1729727365368,0.074922,66792.0,66791.0,0.01301541]
[1729727365566,0.14591326,66794.0,66790.0,0.11947233]
[1729727365781,0.18833726,66791.0,66790.0,0.1328574]
[1729727367166,0.074928,66788.0,66786.0,0.05941816]
[1729727367366,0.074928,66788.0,66783.0,1.5]
[1729727367367,0.074929,66786.0,66785.0,0.05941816]
[1729727367574,0.074929,66786.0,66785.0,0.02343138]
[1729727367575,0.18834226,66786.0,66785.0,0.02343138]
[1729727368169,0.074931,66784.0,66783.0,0.00116]
[1729727368463,0.07494,66776.0,66775.0,0.074941]
[1729727368665,0.18835326,66776.0,66775.0,1.59837569]
[1729727369665,0.18835326,66776.0,66775.0,0.09837569]
[1729727370160,0.18835326,66776.0,66775.0,0.074941]
[1729727371273,0.11341326,66776.0,66775.0,0.074941]
[1729727371977,0.11441326,66776.0,66775.0,0.074941]
[1729727378972,0.001,66776.0,66775.0,0.074941]
[1729727379176,0.11441326,66776.0,66775.0,0.074941]
[1729727380675,0.18935326,66776.0,66775.0,0.074941]
[1729727383574,0.11441326,66776.0,66775.0,0.074941]
[1729727385980,0.18935326,66776.0,66775.0,0.074941]
[1729727387380,0.001,66776.0,66775.0,0.074941]
[1729727389473,0.07594,66776.0,66775.0,0.074941]
[1729727390184,0.001,66776.0,66775.0,0.074941]
[1729727393790,0.11441326,66776.0,66775.0,0.074941]
[1729727395286,0.001,66776.0,66775.0,0.074941]
[1729727395883,0.001,66776.0,66775.0,0.18835426]
[1729727399795,0.001,66776.0,66775.0,0.074941]
[1729727400096,0.07594,66776.0,66775.0,0.074941]
[1729727400289,0.001,66776.0,66775.0,0.074941]
[1729727402086,0.07594,66776.0,66775.0,0.074941]
[1729727402287,0.001,66776.0,66775.0,0.074941]
[1729727409300,0.001,66776.0,66775.0,0.15779399]
[1729727409994,0.001,66776.0,66775.0,0.15779397]
[1729727411689,0.001,66776.0,66775.0,0.09837581]
[1729727412489,0.001,66776.0,66775.0,0.1579062]
[1729727412690,0.001,66776.0,66775.0,0.09837581]
[1729727412989,0.001,66776.0,66775.0,0.15791265]
[1729727413190,0.001,66776.0,66775.0,0.15791296]
[1729727414504,0.001,66776.0,66775.0,0.09837612]
[1729727415001,0.11441326,66776.0,66775.0,0.09837612]
[1729727415693,0.07495,66768.0,66766.0,0.074951]
[1729727415891,0.07495,66768.0,66761.0,0.07649199]
[1729727415892,0.074952,66766.0,66761.0,0.09920644]
[1729727416093,0.074952,66766.0,66765.0,0.074953]
[1729727416695,0.074948,66769.0,66766.0,0.074951]
[1729727417005,0.11341326,66769.0,66768.0,0.074949]
[1729727418199,0.074947,66770.0,66768.0,0.074949]
[1729727418398,0.11341326,66769.0,66768.0,0.074949]
[1729727419401,0.11341326,66769.0,66768.0,0.08805027]
[1729727419709,0.11341326,66769.0,66768.0,0.08572027]
[1729727419903,0.11341326,66769.0,66768.0,0.01310127]
[1729727420201,0.18836126,66769.0,66765.0,0.18836626]
[1729727420605,0.11341326,66769.0,66765.0,0.18836626]
[1729727420799,0.11341326,66766.0,66765.0,0.18836626]
[1729727421202,0.11341326,66766.0,66765.0,0.074953]
[1729727421401,0.11341326,66766.0,66765.0,0.08856009]
[1729727423404,0.074951,66767.0,66765.0,0.20197335]
[1729727424208,0.074951,66767.0,66765.0,0.12702035]
[1729727424409,0.11341326,66769.0,66766.0,0.074951]
[1729727424605,0.18836226,66769.0,66766.0,0.074951]
[1729727425699,0.07495,66767.0,66766.0,0.074951]
[1729727427611,0.07495,66767.0,66766.0,0.09838922]
[1729727427810,0.07495,66767.0,66766.0,0.074951]
[1729727428105,0.07495,66767.0,66766.0,0.09838922]
[1729727428308,0.07495,66767.0,66766.0,0.074951]
[1729727440317,0.074948,66770.0,66768.0,0.074949]
[1729727440613,0.18836126,66769.0,66768.0,0.074949]
[1729727443124,0.074951,66767.0,66766.0,0.074952]
[1729727443424,0.074951,66767.0,66766.0,0.098391]
[1729727443918,0.074951,66767.0,66766.0,0.074952]
[1729727448917,0.11341326,66769.0,66765.0,0.01360709]
[1729727449219,0.11341326,66769.0,66767.0,0.07495]
[1729727449924,0.18836226,66769.0,66767.0,0.07495]
[1729727450618,0.18836226,66769.0,66762.0,0.11341326]
[1729727450815,0.18836226,66769.0,66768.0,0.074949]
[1729727453826,0.033,66771.0,66762.0,0.129651]
[1729727454134,0.107946,66771.0,66770.0,0.074947]
[1729727454330,0.0307,66777.0,66776.0,0.07494]
[1729727454623,0.074916,66798.0,66776.0,0.07494]
[1729727454624,0.074937,66779.0,66778.0,0.074938]
[1729727454828,0.18835026,66779.0,66778.0,0.074938]
[1729727455022,0.11341326,66779.0,66773.0,0.11341326]
[1729727455219,0.074941,66776.0,66775.0,0.074941]
[1729727455418,0.074941,66776.0,66775.0,0.09837669]
[1729727455419,0.18835426,66776.0,66775.0,0.09837669]
[1729727456528,0.11341326,66776.0,66775.0,0.09837669]
[1729727457032,0.11341326,66776.0,66775.0,0.09837661]
[1729727457518,0.11341326,66776.0,66775.0,0.11244495]
[1729727458731,0.18835326,66776.0,66775.0,0.11244495]
[1729727460329,0.18835326,66776.0,66775.0,0.03983395]
[1729727460531,0.18835326,66776.0,66775.0,0.01639834]
[1729727460828,0.18835326,66776.0,66775.0,0.02343576]
[1729727461337,0.18835326,66776.0,66775.0,0.02343654]
[1729727463228,0.11341326,66776.0,66773.0,0.09173931]
[1729727463430,0.074941,66775.0,66774.0,0.02343655]
[1729727463631,0.074941,66775.0,66774.0,0.09837955]
[1729727465431,0.074941,66775.0,66774.0,0.02343655]
[1729727466542,0.074941,66775.0,66774.0,0.09837955]
[1729727466841,0.074941,66775.0,66774.0,0.074943]
[1729727467637,0.074941,66775.0,66774.0,0.09837955]
[1729727467833,0.074941,66775.0,66774.0,0.074943]
[1729727469247,0.11341326,66776.0,66773.0,0.13020957]
[1729727469453,0.0305,66777.0,66776.0,0.07494]
[1729727470841,0.105439,66777.0,66776.0,0.07494]